bitfinex/quotes_ETHUSD_20240707
["timestamp","ask_amount","ask_price","bid_price","bid_amount"]
[1720367521696,1.05705139,2969.8,2969.7,4.71428]
[1720367521895,1.40863828,2969.8,2969.7,4.71428]
[1720367522208,1.40863828,2969.8,2969.7,5.414358]
[1720367523032,0.705082,2970.0,2969.8,2.35706]
[1720367523249,0.705082,2970.2,2970.0,2.3569]
[1720367523550,0.705082,2970.4,2970.3,4.71332]
[1720367523694,0.705082,2970.5,2970.4,4.71316]
[1720367523900,1.05712039,2970.5,2970.4,4.71316]
[1720367524125,0.705082,2970.6,2970.5,4.713]
[1720367524642,3.046382,2970.7,2970.6,2.35642]
[1720367524846,3.39835139,2970.7,2970.6,2.35642]
[1720367525010,2.3413,2970.7,2970.6,7.465131]
[1720367525201,2.3413,2970.7,2970.6,6.99384]
[1720367526334,2.3413,2970.7,2969.9,2.35695]
[1720367526545,2.3413,2970.7,2970.6,2.35642]
[1720367528695,2.3413,2970.7,2970.6,5.184132]
[1720367528896,2.3413,2970.7,2970.6,7.465132]
[1720367529406,2.3413,2970.7,2970.6,9.821552]
[1720367530601,7.41,2971.3,2971.0,2.35608]
[1720367530832,0.70381866,2971.5,2971.1,2.35602]
[1720367531367,0.70381866,2971.5,2971.0,2.35603]
[1720367531368,0.70381866,2971.5,2970.8,2.35622]
[1720367531527,3.0,2971.4,2970.6,4.64286]
[1720367531730,3.70381866,2971.4,2970.7,2.3563]
[1720367532069,0.70227992,2971.3,2970.7,2.3563]
[1720367532461,0.70227992,2971.3,2970.8,2.35621]
[1720367532661,3.70227992,2971.4,2970.8,4.7124]
[1720367533339,3.0,2971.4,2970.9,2.35617]
[1720367534063,3.70227992,2971.4,2970.9,2.35617]
[1720367534276,0.70227992,2971.3,2970.6,2.4865]
[1720367534758,0.70227992,2971.3,2970.6,4.84292]
[1720367535656,0.70227992,2971.3,2970.6,7.19928]
[1720367536027,0.70227992,2971.3,2970.6,4.84286]
[1720367536224,3.0,2971.4,2970.6,4.84286]
[1720367536225,3.70227992,2971.4,2970.6,4.84286]
[1720367536442,0.70227992,2971.3,2970.6,4.84286]
[1720367536644,3.70227992,2971.4,2970.6,7.19923]
[1720367537366,3.0,2971.4,2970.6,7.19923]
[1720367537531,3.70227992,2971.4,2970.6,7.19923]
[1720367537737,3.0,2971.4,2970.7,2.35633]
[1720367538530,3.0,2971.4,2970.8,2.35625]
[1720367539844,10.80471988,2971.7,2970.8,2.35625]
[1720367539845,13.45357992,2971.7,2971.0,2.35609]
[1720367540166,3.0,2971.4,2970.8,2.35621]
[1720367540335,3.0,2971.4,2970.9,2.35614]
[1720367541638,3.0,2971.4,2971.0,2.35608]
[1720367542170,12.7513,2971.7,2971.0,2.827309]
[1720367542490,12.7513,2971.7,2971.1,2.35597]
[1720367543249,12.7513,2971.7,2971.2,2.3559]
[1720367543450,2.3413,2971.7,2971.4,4.71149]
[1720367543686,2.3413,2971.7,2971.5,3.054909]
[1720367543850,2.3413,2971.7,2971.6,2.35563]
[1720367544243,2.3413,2971.7,2971.6,4.77856027]
[1720367544438,2.3413,2971.7,2971.6,4.71126]
[1720367549904,2.3413,2971.7,2971.6,2.35563]
[1720367550040,2.3413,2971.7,2971.0,2.35604]
[1720367550235,3.0,2971.5,2970.8,4.63723]
[1720367550477,3.0,2971.5,2970.8,4.63721]
[1720367550640,3.0,2971.5,2970.8,4.6372]
[1720367550839,3.0,2971.5,2971.0,2.3561]
[1720367553275,3.0,2971.5,2971.0,4.71214]
[1720367553459,2.3413,2971.7,2971.1,0.06731268]
[1720367553662,2.3413,2971.7,2971.2,2.281]
[1720367553855,2.3413,2971.7,2971.4,2.35578]
[1720367554167,2.3413,2971.7,2971.2,4.63693]
[1720367554951,2.3413,2971.7,2971.3,2.3558]
[1720367555151,2.3413,2971.7,2971.4,2.35578]
[1720367556365,2.3413,2971.7,2971.2,6.99278]
[1720367556573,2.3413,2971.7,2971.2,2.281]
[1720367556951,2.3413,2971.7,2971.0,2.35605]
[1720367556952,3.0,2971.4,2970.7,2.35628]
[1720367557197,3.0,2971.4,2970.6,5.04288]
[1720367557198,3.0,2971.4,2970.6,5.04287]
[1720367557381,1.16601545,2971.3,2970.6,5.04287]
[1720367557550,3.0,2971.4,2970.6,5.04287]
[1720367557551,1.1660466,2971.2,2970.6,5.04287]
[1720367557751,3.0,2971.4,2970.7,2.35632]
[1720367557955,1.16604928,2971.3,2970.7,2.35632]
[1720367558151,3.0,2971.4,2970.7,2.35632]
[1720367558364,1.16603779,2971.3,2970.7,2.35632]
[1720367558659,3.0,2971.4,2970.7,2.35632]
[1720367558860,1.16604083,2971.3,2970.7,2.35632]
[1720367559169,1.16604083,2971.2,2970.7,2.35632]
[1720367559349,1.16604083,2971.3,2970.7,2.35632]
[1720367560108,3.0,2971.4,2970.7,2.35632]
[1720367560250,1.16603216,2971.3,2970.7,4.7126]
[1720367560455,7.41,2971.5,2971.1,2.35598]
[1720367560675,10.41,2971.5,2970.8,4.63724]
[1720367560893,10.41,2971.5,2971.0,2.35605]
[1720367561583,10.41,2971.5,2971.1,2.356]
[1720367561772,7.41,2971.5,2971.1,2.356]
[1720367561968,7.41,2971.5,2971.3,2.35585]
[1720367562778,7.41,2971.5,2971.4,2.35579]
[1720367563307,7.41,2971.5,2971.2,6.99275]
[1720367563509,7.41,2971.5,2971.2,7.7619579]
[1720367563713,7.41,2971.5,2971.3,2.35584]
[1720367565416,3.04220464,2971.7,2971.3,4.71165]
[1720367565625,0.35282136,2971.6,2971.4,2.35572]
[1720367565792,2.3413,2971.7,2971.4,2.35572]
[1720367566518,3.04220464,2971.7,2971.5,2.3557]
[1720367566726,3.04220464,2971.7,2971.6,6.99226]
[1720367566727,2.3413,2971.7,2971.6,6.99226]
[1720367570088,8.11289402,2972.0,2971.8,2.35547]
[1720367570305,1.05465046,2972.1,2971.8,2.35547]
[1720367570615,1.05465046,2972.1,2972.0,2.3553]
[1720367570827,1.40780251,2972.1,2972.0,2.3553]
[1720367573816,1.05465046,2972.2,2972.0,2.3553]
[1720367574018,0.70283707,2972.1,2972.0,2.3553]
[1720367574931,0.70283707,2972.1,2972.0,2.83310605]
[1720367575095,0.70283707,2972.1,2972.0,5.11410605]
[1720367575434,1.05465046,2972.3,2972.0,5.11410605]
[1720367575435,0.70283707,2972.2,2972.0,5.11410605]
[1720367575597,0.70283707,2972.2,2972.0,4.6363]
[1720367575991,0.70283707,2972.2,2972.1,2.35523]
[1720367576232,0.3528824,2972.2,2972.1,2.35523]
[1720367576530,0.70278166,2972.2,2972.1,2.35523]
[1720367576895,0.70278166,2972.3,2972.1,2.35523]
[1720367577103,0.70278166,2972.2,2972.1,2.35523]
[1720367577306,0.70278166,2972.3,2972.0,2.281]
[1720367577543,0.70278166,2972.2,2972.0,4.63629]
[1720367578642,0.70278166,2972.2,2972.1,2.35523]
[1720367579343,0.70278166,2972.3,2972.2,2.35515]
[1720367579551,7.41,2972.5,2972.2,2.35515]
[1720367579845,0.7025766,2972.4,2972.2,2.35515]
[1720367581004,0.7025766,2972.4,2972.3,2.35507]
[1720367581321,1.05386491,2972.5,2972.4,2.35499]
[1720367581322,0.7025766,2972.5,2972.4,2.35499]
[1720367581502,1.05386491,2972.6,2972.5,2.35492]
[1720367581503,0.7025766,2972.6,2972.5,2.35492]
[1720367582257,0.7025766,2972.7,2972.6,2.35484]
[1720367582405,13.1125766,2972.8,2972.7,2.35476]
[1720367582752,0.70212887,2973.1,2972.6,0.06727497]
[1720367582934,8.46386491,2973.2,2972.6,0.06727497]
[1720367582935,7.41,2973.2,2973.1,2.35444]
[1720367584149,7.41,2973.2,2973.1,4.70888]
[1720367584325,7.41,2973.2,2973.1,7.06332]
[1720367584846,0.70212887,2974.1,2974.0,4.70746]
[1720367585148,0.70212887,2974.7,2974.3,2.35344]
[1720367585508,3.70212887,2974.8,2974.3,2.35344]
[1720367585707,0.70212887,2974.8,2974.3,2.35344]
[1720367585917,0.70212887,2974.9,2974.3,2.35344]
[1720367586327,0.70212887,2975.0,2974.3,2.35344]
[1720367586506,3.70212887,2975.1,2974.3,2.35344]
[1720367586739,3.70212887,2975.1,2974.4,0.06723265]
[1720367586933,3.0,2975.1,2974.4,0.06723265]
[1720367587191,0.3514343,2975.2,2974.6,2.35319]
[1720367587491,0.3514343,2975.2,2974.8,2.35309]
[1720367587844,0.3514343,2975.2,2974.7,2.281]
[1720367588081,0.3514343,2975.2,2974.2,2.35349]
[1720367588082,3.0,2975.1,2974.2,2.35349]
[1720367588290,3.0,2975.1,2974.4,2.3534]
[1720367588779,3.0,2975.1,2974.2,4.63449]
[1720367588780,2.35294,2975.0,2974.2,2.35357]
[1720367588980,3.0,2975.1,2974.3,2.35347]
[1720367590469,2.7042143,2975.2,2974.2,2.35357]
[1720367590470,0.3514343,2975.2,2974.4,2.42063498]
[1720367590639,3.3514343,2975.2,2974.4,2.42063498]
[1720367590863,3.0,2974.9,2974.4,2.3534]
[1720367591055,3.0,2974.9,2974.0,4.63471]
[1720367592260,3.0,2974.9,2974.0,4.63467]
[1720367592660,3.0,2974.9,2974.2,2.35355]
[1720367593060,3.0,2974.9,2974.0,4.63467]
[1720367593475,3.0,2974.6,2973.6,3.0]
[1720367593677,3.0,2974.6,2973.8,2.35387]
[1720367593905,3.0,2974.6,2973.8,4.63487]
[1720367594817,5.35327,2974.6,2973.8,2.281]
[1720367595276,5.35327,2974.6,2973.8,4.63488]
[1720367595873,5.35327,2974.6,2973.8,2.281]
[1720367596308,3.0,2974.2,2973.1,2.35438]
[1720367596511,5.35358,2974.2,2973.3,4.70846]
[1720367596718,5.35358,2974.2,2973.4,2.3542]
[1720367597012,5.35358,2974.2,2973.2,2.281]
[1720367597013,3.0,2973.9,2973.2,2.281]
[1720367597214,3.0,2973.9,2972.6,0.2348275]
[1720367597215,3.0,2973.6,2972.8,2.35463]
[1720367597403,3.0,2973.6,2972.9,2.35456]
[1720367598429,3.0,2973.9,2973.1,4.63539]
[1720367599796,3.0,2973.9,2973.2,2.35435]
[1720367601340,3.0,2973.9,2973.1,4.63537]
[1720367601739,3.0,2973.9,2973.1,2.281]
[1720367602498,3.0,2973.9,2973.1,4.63541]
[1720367603910,3.0,2973.9,2973.1,6.9898]
[1720367604346,3.0,2973.9,2973.2,2.35436]
[1720367605439,0.35153736,2974.1,2973.3,2.42147108]
[1720367605742,3.0,2974.2,2973.5,2.281]
[1720367607501,3.0,2974.2,2973.5,4.63512]
[1720367609039,3.0,2974.2,2973.5,6.98918]
[1720367609196,3.0,2974.2,2973.6,0.76617313]
[1720367609401,3.0,2974.2,2973.8,2.35388]
[1720367609638,7.41,2974.4,2973.7,2.35389]
[1720367609841,7.41,2974.4,2973.9,2.35376]
[1720367610219,19.82,2974.7,2973.9,4.63476]
[1720367610435,19.82,2974.7,2974.1,2.35358]
[1720367610602,19.82,2974.7,2974.2,0.235358]
[1720367611205,19.82,2974.7,2974.2,2.35357]
[1720367612919,19.82,2974.7,2974.3,2.35348]
[1720367613844,19.32,2974.7,2974.3,2.35348]
[1720367615956,3.0,2974.8,2974.1,4.70717]
[1720367616127,1.16464979,2974.7,2973.9,6.98851]
[1720367616327,1.16464979,2974.6,2973.9,5.333591]
[1720367616532,1.16464979,2974.7,2974.1,2.35365]
[1720367616732,3.0,2974.8,2974.2,2.35357]
[1720367617059,1.16474022,2974.7,2974.2,2.35357]
[1720367617281,3.0,2974.8,2974.3,2.824202]
[1720367617489,1.16463442,2974.7,2974.3,2.824202]
[1720367617659,3.0,2974.8,2974.3,2.824202]
[1720367617981,1.16463454,2974.7,2974.3,2.824202]
[1720367618144,3.0,2974.8,2974.3,2.824202]
[1720367618347,1.16465638,2974.7,2974.3,2.824202]
[1720367618560,3.0,2974.8,2974.3,2.824202]
[1720367618761,1.16465766,2974.7,2974.3,2.824202]
[1720367619059,3.0,2974.8,2974.3,2.824202]
[1720367619246,1.164657,2974.7,2974.3,2.824202]
[1720367619454,3.0,2974.8,2974.3,2.824202]
[1720367619659,1.16466773,2974.7,2974.3,2.824202]
[1720367619861,3.0,2974.8,2974.3,2.824202]
[1720367620380,1.16465505,2974.7,2974.1,2.35365]
[1720367620591,1.16465505,2974.6,2974.2,2.35351]
[1720367620801,1.16465505,2974.7,2974.2,2.35351]
[1720367621081,1.16465505,2974.7,2974.1,2.35361]
[1720367621390,1.16465505,2974.7,2974.1,5.2478331]
[1720367621688,1.16465505,2974.7,2974.1,2.8942231]
[1720367621992,3.0,2974.4,2973.7,2.35392]
[1720367622148,3.0,2973.9,2973.3,4.63523]
[1720367622358,3.0,2973.9,2973.3,2.35423]
[1720367622560,3.0,2973.9,2973.5,4.70818]
[1720367623016,3.0,2973.9,2973.4,0.235423]
[1720367623168,3.0,2973.9,2973.1,4.63537]
[1720367623368,1.16502565,2973.8,2973.3,2.35426]
[1720367623674,3.0,2973.9,2973.3,4.7085]
[1720367623879,1.16501492,2973.8,2973.3,5.40745]
[1720367624068,3.0,2973.9,2973.3,3.05319]
[1720367624264,2.22258882,2973.8,2973.2,2.35431]
[1720367624583,2.22258882,2973.8,2973.1,4.6354]
[1720367624584,0.7018189,2973.8,2973.3,2.35422]
[1720367624793,3.0,2973.9,2973.3,2.35422]
[1720367624999,1.52066422,2973.8,2973.4,2.3542]
[1720367625177,3.7018189,2973.9,2973.4,2.3542]
[1720367625502,1.86679391,2973.8,2973.4,2.3542]
[1720367625719,0.7018189,2973.8,2973.4,2.3542]
[1720367625865,0.35565502,2973.7,2973.4,2.3542]
[1720367626061,0.7018189,2973.8,2973.4,2.3542]
[1720367626302,3.7018189,2973.9,2973.4,2.3542]
[1720367626477,1.05833157,2973.8,2973.4,2.3542]
[1720367626677,0.35566968,2973.7,2973.4,2.3542]
[1720367627318,0.70260495,2973.8,2973.4,2.3542]
[1720367627687,0.35577657,2973.7,2973.4,2.3542]
[1720367628017,0.70260495,2973.8,2973.5,2.58949]
[1720367628387,0.70260495,2973.8,2973.6,2.35404]
[1720367628602,1.05390742,2974.0,2973.6,2.35404]
[1720367628603,0.70260495,2973.9,2973.6,2.35404]
[1720367628829,0.70260495,2973.9,2973.5,0.23542]
[1720367628981,1.0585557,2973.8,2973.3,2.35428]
[1720367629182,0.70260495,2973.7,2973.3,2.35428]
[1720367629389,0.70260495,2973.7,2973.2,2.35431]
[1720367629788,0.70260495,2973.6,2973.2,2.35431]
[1720367631104,0.70260495,2973.6,2973.0,2.35449]
[1720367631307,0.70260495,2973.6,2973.1,2.589869]
[1720367631511,0.70260495,2973.5,2973.2,2.35435]
[1720367631705,0.70260495,2973.6,2973.3,2.35427]
[1720367632021,0.70260495,2973.7,2973.4,2.3542]
[1720367632407,0.70260495,2973.6,2973.4,2.3542]
[1720367632628,0.70260495,2973.6,2973.4,3.053155]
[1720367633140,0.70409651,2973.8,2973.4,3.053155]
[1720367633305,0.70409651,2973.6,2973.4,3.053155]
[1720367634129,0.70409651,2973.6,2973.4,5.407305]
[1720367634425,1.05614476,2973.7,2973.4,5.407305]
[1720367634426,0.70409651,2973.5,2973.4,0.698955]
[1720367634736,0.70409651,2973.5,2973.2,2.35431]
[1720367635033,0.70444589,2973.4,2973.2,2.35431]
[1720367635408,0.70444589,2973.4,2973.2,4.70863]
[1720367635834,0.70444589,2973.4,2973.2,2.35431]
[1720367636353,0.70444589,2973.4,2973.3,2.35428]
[1720367636637,0.70466286,2973.5,2973.3,2.8486839]
[1720367636790,0.70466286,2973.6,2973.4,2.3542]
[1720367636995,0.70466286,2973.6,2973.5,2.63898039]
[1720367637352,0.70466286,2973.7,2973.6,2.35404]
[1720367637556,0.70466286,2973.8,2973.6,4.70808]
[1720367638651,0.70466286,2973.8,2973.7,4.77517304]
[1720367638863,0.70466286,2974.0,2973.9,2.35381]
[1720367639048,0.70466286,2974.1,2974.0,2.35373]
[1720367639253,0.70466286,2974.2,2974.1,2.35365]
[1720367639775,0.3568487,2974.2,2974.1,2.35365]
[1720367639982,1.06180796,2974.2,2974.1,2.35365]
[1720367640181,1.0569943,2974.3,2974.1,2.35365]
[1720367640494,1.0569943,2974.3,2974.2,0.463465]
[1720367640707,0.70488677,2974.3,2974.2,2.817035]
[1720367641061,0.70488677,2974.3,2974.2,5.170605]
[1720367641990,0.70488677,2974.4,2974.3,2.35349]
[1720367642167,20.3769943,2974.5,2974.4,2.35341]
[1720367642387,1.41404121,2974.5,2974.4,2.35341]
[1720367642593,1.40932573,2974.7,2974.4,2.35341]
[1720367642594,1.0569943,2974.6,2974.5,2.35333]
[1720367642898,1.40932573,2974.7,2974.6,2.35325]
[1720367642899,1.0569943,2974.7,2974.6,2.35325]
[1720367643098,1.40932573,2974.9,2974.6,2.35325]
[1720367643099,1.0569943,2974.8,2974.7,2.35317]
[1720367643299,1.41421212,2974.8,2974.7,2.35317]
[1720367643861,1.41421212,2974.8,2974.5,2.35327]
[1720367644062,1.41422585,2974.7,2974.6,2.35324]
[1720367644261,0.35723155,2974.7,2974.6,2.35324]
[1720367644563,0.70448427,2974.7,2974.6,2.35324]
[1720367644759,7.41,2975.0,2974.6,2.35324]
[1720367644996,0.70448483,2974.7,2974.6,2.35324]
[1720367645509,0.70438117,2974.7,2974.6,2.35324]
[1720367646691,0.70438117,2974.7,2974.4,2.35337]
[1720367646878,0.70419886,2974.5,2974.4,2.35337]
[1720367648020,0.70419886,2974.5,2974.2,2.35355]
[1720367648310,0.70419886,2974.4,2974.0,2.35367]
[1720367648517,0.70419886,2974.3,2974.1,2.35359]
[1720367649199,0.70419886,2974.3,2974.0,2.589037]
[1720367649401,0.70419886,2974.2,2974.0,2.35367]
[1720367649899,0.70419886,2974.3,2974.2,2.35357]
[1720367650109,1.40896967,2974.6,2974.3,2.35349]
[1720367650110,0.70419886,2974.4,2974.3,2.35349]
[1720367650277,0.70419886,2974.5,2974.4,2.35341]
[1720367650674,0.70419886,2974.5,2974.0,2.35365]
[1720367650675,1.41377962,2974.5,2974.0,2.35365]
[1720367650887,0.7045616,2974.2,2974.1,2.35359]
[1720367651423,0.7045616,2974.2,2973.9,2.35374]
[1720367651595,0.7045616,2974.2,2973.8,2.281]
[1720367651596,0.7045616,2974.1,2973.8,2.281]
[1720367651799,0.7045616,2974.0,2973.8,4.63488]
[1720367652111,0.7045616,2974.0,2973.9,2.35381]
[1720367652291,0.7045616,2974.1,2974.0,2.35373]
[1720367653617,1.05672725,2974.2,2974.0,2.35373]
[1720367653776,0.70467334,2974.1,2974.0,2.35373]
[1720367654607,0.70467334,2974.2,2974.0,2.35373]
[1720367654947,0.70467334,2974.1,2974.0,2.35373]
[1720367656019,0.70467334,2974.1,2974.0,3.052591]
[1720367656217,0.70467334,2974.2,2974.1,2.35365]
[1720367656735,0.70467334,2974.2,2974.0,0.698861]
[1720367656939,0.70472768,2974.1,2973.9,2.35375]
[1720367658536,0.70472768,2974.1,2973.8,4.63484]
[1720367658840,0.70472768,2973.9,2973.8,4.63484]
[1720367659559,3.35670147,2973.9,2973.3,2.35424]
[1720367659850,0.70464781,2973.6,2973.3,2.35424]
[1720367660004,0.70464781,2973.5,2973.1,2.35441]
[1720367660198,0.70464781,2973.3,2973.0,2.281]
[1720367660817,0.70464781,2973.2,2973.0,2.281]
[1720367661034,0.70464781,2973.2,2973.0,4.6355]
[1720367661215,0.70464781,2973.3,2973.0,4.6355]
[1720367662096,0.70464781,2973.3,2973.0,5.334504]
[1720367662948,0.70464781,2973.2,2972.9,4.70908]
[1720367663152,0.70464781,2973.2,2972.9,4.70906]
[1720367663542,0.70464781,2973.2,2972.9,2.35452]
[1720367663947,0.70440403,2973.2,2972.9,2.35452]
[1720367664268,0.70440403,2973.2,2973.0,2.35452]
[1720367666197,0.70440403,2973.3,2973.0,2.35452]
[1720367667960,0.70440403,2973.4,2973.2,2.35436]
[1720367668394,0.70440403,2973.5,2973.2,2.35436]
[1720367669258,0.70440403,2973.5,2973.4,2.3542]
[1720367669804,0.70440403,2973.6,2973.4,2.3542]
[1720367670399,0.70440403,2973.5,2973.4,2.3542]
[1720367670964,0.70440403,2973.5,2973.3,2.35421]
[1720367670965,0.70440403,2973.6,2973.5,2.35412]
[1720367671584,1.05660605,2973.7,2973.3,4.70842]
[1720367671764,0.70441257,2973.5,2973.3,2.35421]
[1720367673358,0.70441257,2973.5,2973.4,2.3542]
[1720367673602,0.70435962,2973.6,2973.4,2.3542]
[1720367673982,0.70435962,2973.6,2973.3,3.1231373]
[1720367674186,0.70435962,2973.5,2973.3,2.35428]
[1720367674492,0.70435962,2973.5,2973.3,2.35423]
[1720367674694,0.70435962,2973.5,2973.3,4.70847]
[1720367675006,0.70435962,2973.5,2973.3,2.35423]
[1720367675585,0.70435962,2973.5,2973.3,4.70846]
[1720367675787,0.70435962,2973.5,2973.3,2.35422]
[1720367676773,3.0,2973.9,2973.3,2.35422]
[1720367676975,0.70437161,2973.5,2973.3,2.35422]
[1720367677369,0.70437161,2973.5,2973.4,2.3542]
[1720367677678,0.70437161,2973.6,2973.4,2.3542]
[1720367678407,0.70437161,2973.6,2973.5,2.35412]
[1720367679108,0.70437161,2973.6,2973.5,2.824954]
[1720367679318,0.70437161,2973.7,2973.5,2.35412]
[1720367679473,0.70437161,2973.7,2973.5,4.70819]
[1720367679672,0.70437161,2973.7,2973.5,2.35407]
[1720367680431,0.70437161,2973.7,2973.5,4.70814]
[1720367682915,0.70437161,2973.7,2973.6,2.35404]
[1720367683420,0.70437161,2973.7,2973.5,2.35407]
[1720367683585,0.70437161,2973.7,2973.5,4.70814]
[1720367684021,0.70437161,2973.7,2973.6,2.35404]
[1720367684624,1.16495288,2973.7,2973.4,2.35418]
[1720367684795,0.70438673,2973.7,2973.3,2.35421]
[1720367685290,0.70438673,2973.6,2973.3,2.35421]
[1720367685491,0.70438673,2973.6,2973.3,2.817731]
[1720367685801,0.70438673,2973.6,2973.5,2.35411]
[1720367686198,1.86936154,2973.6,2973.5,2.35411]
[1720367686527,0.70438673,2973.6,2973.5,2.35411]
[1720367686724,1.05663597,2973.7,2973.5,2.35411]
[1720367686888,1.86938184,2973.6,2973.5,2.35411]
[1720367688497,1.86938184,2973.6,2973.3,2.35421]
[1720367688708,1.8695373,2973.5,2973.3,2.35421]
[1720367688912,1.16495786,2973.4,2973.3,2.35421]
[1720367689114,0.70457944,2973.5,2973.3,2.35421]
[1720367689333,1.1650405,2973.4,2973.3,2.35421]
[1720367689529,1.86961994,2973.4,2973.3,2.35421]
[1720367689857,0.70457944,2973.4,2973.3,2.35421]
[1720367690149,1.86963474,2973.4,2973.3,2.35421]
[1720367692342,2.22553221,2973.4,2973.3,2.35421]
[1720367692647,2.57758874,2973.4,2973.3,3.30421]
[1720367693014,2.22568711,2973.4,2973.3,3.30421]
[1720367693346,1.86974786,2973.4,2973.3,3.87007]
[1720367693712,1.86972853,2973.4,2973.3,3.87007]
[1720367694252,1.52079387,2973.4,2973.3,3.30421]
[1720367694745,2.22569219,2973.4,2973.3,3.30421]
[1720367694942,1.16500943,2973.4,2973.3,3.30421]
[1720367695262,1.52076904,2973.4,2973.3,3.30421]
[1720367695414,1.52078849,2973.4,2973.3,3.30421]
[1720367695613,2.22587258,2973.4,2973.3,6.224346]
[1720367695962,0.70508409,2973.4,2973.3,5.65849]
[1720367696127,1.0609454,2973.4,2973.3,5.65849]
[1720367696335,2.22592634,2973.4,2973.3,5.65849]
[1720367696535,1.52084975,2973.4,2973.3,6.224339]
[1720367696731,2.22625951,2973.4,2973.3,6.224339]
[1720367696932,1.06127107,2973.4,2973.3,6.224339]
[1720367697154,0.70540976,2973.4,2973.3,6.224339]
[1720367697484,0.70540976,2973.5,2973.4,4.7084]
[1720367697775,0.70540976,2973.5,2973.4,5.33755066]
[1720367697929,0.70540976,2973.5,2973.4,7.69175066]
[1720367698124,0.70540976,2973.7,2973.6,2.35404]
[1720367698354,0.70540976,2973.7,2973.6,3.30404]
[1720367698675,0.70540976,2973.7,2973.6,5.65808]
[1720367698958,0.70540976,2973.7,2973.6,6.52894817]
[1720367699519,0.70540976,2973.7,2973.6,8.88298817]
[1720367699770,0.70540976,2974.0,2973.8,2.35389]
[1720367699926,0.70540976,2974.0,2973.6,4.82086817]
[1720367699927,0.70540976,2974.2,2973.9,3.37105342]
[1720367700129,1.05707866,2974.4,2974.1,0.95]
[1720367700431,1.06268336,2974.3,2974.2,4.70714]
[1720367700638,1.06268336,2974.3,2974.2,5.65714]
[1720367700639,0.35698506,2974.3,2974.2,5.65714]
[1720367701427,1.41406372,2974.3,2974.2,5.65714]
[1720367701853,0.35698506,2974.3,2974.2,5.65714]
[1720367702242,1.0624294,2974.3,2974.2,5.65714]
[1720367702423,0.35698506,2974.3,2974.2,6.25656453]
[1720367702671,1.06253608,2974.3,2974.2,5.30656453]
[1720367702975,1.41531159,2974.3,2974.2,4.70714]
[1720367704587,1.52172713,2974.3,2973.8,4.70766]
[1720367704752,1.05791246,2974.0,2973.9,2.3538]
[1720367704954,1.41489752,2974.0,2973.9,2.3538]
[1720367705271,0.35698506,2974.0,2973.9,2.3538]
[1720367705452,1.41495405,2974.0,2973.9,2.3538]
[1720367706849,0.35698506,2974.0,2973.9,2.3538]
[1720367707253,1.41510447,2974.0,2973.9,2.3538]
[1720367708948,1.41510447,2974.0,2973.9,5.178377]
[1720367709349,0.35698506,2974.0,2973.9,5.178377]
[1720367709589,1.41510447,2974.0,2973.9,5.178377]
[1720367709774,0.35698506,2974.0,2973.9,5.178377]
[1720367710151,1.05811941,2974.1,2973.9,5.178377]
[1720367710152,1.05811941,2974.1,2973.9,2.824567]
[1720367710351,0.70530962,2974.2,2974.1,4.7073]
[1720367710558,0.70530962,2974.4,2974.3,2.35349]
[1720367710783,0.35678957,2974.4,2974.3,4.70698]
[1720367710950,7.41,2974.6,2974.5,2.35333]
[1720367711147,0.35688449,2974.6,2974.5,2.35333]
[1720367711394,1.41459214,2974.6,2974.5,5.24456787]
[1720367711616,0.70510572,2974.7,2974.6,4.7065]
[1720367711910,0.35688759,2974.7,2974.6,7.05073052]
[1720367712203,0.70510572,2974.9,2974.8,4.70618]
[1720367712757,1.05770765,2975.0,2974.9,2.35302]
[1720367712959,1.41474772,2975.0,2974.9,2.35302]
[1720367713409,1.41474772,2975.0,2974.9,4.70604]
[1720367713612,8.46770765,2975.1,2975.0,2.35294]
[1720367713756,8.82466465,2975.1,2975.0,2.35294]
[1720367714174,7.766957,2975.1,2975.0,2.35294]
[1720367714455,1.05770765,2975.3,2975.0,2.35294]
[1720367714765,1.05770765,2975.3,2975.2,2.35278]
[1720367715006,1.05770765,2975.4,2975.3,4.7054]
[1720367715187,8.46770765,2975.6,2975.5,2.35254]
[1720367715495,8.82487081,2975.6,2975.5,2.35254]
[1720367716297,7.76716316,2975.6,2975.5,2.35254]
[1720367716459,7.41,2975.6,2975.5,2.35254]
[1720367717095,8.11346376,2975.6,2975.5,2.35254]
[1720367717285,7.41,2975.6,2975.5,2.35254]
[1720367720117,7.41,2975.6,2975.2,2.35272]
[1720367720320,3.70346376,2975.8,2975.3,2.3527]
[1720367720610,0.70346376,2975.7,2975.3,2.3527]
[1720367721027,0.70346376,2975.6,2975.1,2.35278]
[1720367721229,0.70250625,2975.6,2975.0,2.3529]
[1720367721373,0.70250625,2975.5,2975.1,2.35286]
[1720367721728,0.70250625,2975.6,2974.9,2.35296]
[1720367721890,0.70250625,2975.6,2975.0,0.235296]
[1720367722089,0.70250625,2975.7,2975.4,2.35258]
[1720367723717,3.70250625,2975.8,2975.4,2.35258]
[1720367724434,3.70250625,2975.8,2975.4,4.70515]
[1720367724716,12.61250625,2975.9,2975.5,2.35252]
[1720367724884,0.70250625,2975.9,2975.5,2.35252]
[1720367725292,7.41,2976.0,2975.6,2.35246]
[1720367725293,8.11250625,2976.0,2975.6,2.35246]
[1720367727416,8.11250625,2976.0,2975.2,2.35272]
[1720367727627,1.86677264,2975.9,2975.3,2.35268]
[1720367727977,8.11250625,2976.0,2975.4,2.35261]
[1720367728209,1.16423454,2975.9,2975.4,2.35261]
[1720367728403,8.11250625,2976.0,2975.2,4.70545]
[1720367728719,3.0,2975.8,2975.3,2.35267]
[1720367728899,3.0,2975.8,2975.4,2.35261]
[1720367731918,3.0,2975.8,2975.4,2.35255]
[1720367732121,7.41,2976.0,2975.4,2.35255]
[1720367732276,7.41,2976.0,2975.9,2.35222]
[1720367732478,7.41,2976.0,2975.9,4.70444]